Cogmind - Beta 14 *** ADVENTURER MODE // 2024.08.14 @ 23:17:34 Player: KURIIRI Result: Destroyed by exploding Fusion Modulator Performance ------------- Evolutions (0) 0 Regions Visited (1) 200 Robots Destroyed (26) 130 Value Destroyed (523) 523 Prototype IDs (3) 60 Alien Tech Used (0) 0 Bonus (0) 0 TOTAL SCORE: 913 Bonus ------- None Cogmind --------- Core Integrity 0/250 Matter 300/300 Energy 248/250 System Corruption 0% Temperature Cool (36) Movement Rolling (100) Location -10/Materials Parts ------- > --- POWER (1) -------- Ion Engine > --- PROPULSION (2) --- Compact Wheel > --- UTILITY (2) ------ Small Storage Unit > --- WEAPON (2) ------- Particle Cannon > --- INVENTORY (8) ---- Light Ion Engine Compact Wheel Compact Wheel High-capacity Matter Pod (62) Visual Processing Unit Assault Rifle Mace Mace Peak State ------------ > --- POWER ------------ Light Ion Engine > --- PROPULSION ------- Improved Flight Unit Improved Flight Unit > --- UTILITY ---------- Small Storage Unit > --- WEAPON ----------- Assault Rifle Assault Rifle > --- INVENTORY -------- Wheel Compact Wheel Cooling System [Rating: 10] Favorites ----------- Power Light Ion Engine Engine Light Ion Engine Propulsion Compact Wheel Wheel Compact Wheel Flight Unit Improved Flight Unit Utility Small Storage Unit Device Cooling System Storage Small Storage Unit Weapon Particle Cannon Energy Gun Medium Laser Energy Cannon Particle Cannon Ballistic Gun Assault Rifle Impact Weapon Mace Build | -11 -10 ------- Run | Yrd Mat Slots Evolved . | . . Power . | . . Propulsion . | . . Utility . | . . Weapon . | . . Parts Attached 22 | 7 15 Power 4 | 1 3 Engine 4 | 1 3 Core . | . . Reactor . | . . Propulsion 10 | 2 8 Treads . | . . Leg . | . . Wheel 8 | 2 6 Hover . | . . Flight 2 | . 2 Utility 2 | 1 1 Device 1 | . 1 Storage 1 | 1 . Processor . | . . Hackware . | . . Protection . | . . Artifact . | . . Weapon 6 | 3 3 Energy Gun 1 | 1 . Energy Cannon 2 | . 2 Ballistic Gun 2 | 2 . Ballistic Cannon . | . . Launcher . | . . Special Weapon . | . . Impact Weapon 1 | . 1 Slashing Weapon . | . . Piercing Weapon . | . . Special Melee Weapon . | . . Unidentified Prototypes 1 | . 1 Parts Lost 4 | . 4 Power . | . . Propulsion 2 | . 2 Utility 1 | . 1 Weapon 1 | . 1 Highest Loss Streak 2 | . 2 To Critical Strikes . | . . Average Slot Usage (%) 81 | . 81 Engine 14 | . 14 Wheel 23 | . 23 Device 1 | . 1 Storage 14 | . 14 Energy Cannon 17 | . 17 Ballistic Gun 7 | . 7 Impact Weapon 2 | . 2 Peak Build Rating 10 | 6 10 Average Rating 7 | 4 7 On Entrance 3 | . 6 Naked Turns . | . . Heaviest Build 18 | 12 18 Greatest Support 32 | 26 32 Greatest Overweight (x) 1 | . 1 Average Overweight (x) . | . . Largest Inventory Capacity 8 | 8 8 Average Capacity 7 | 6 8 Most Carried 8 | 3 8 Average Carried 4 | . 4 Final Capacity 8 | 8 8 Final Carried 8 | . 8 Class Distribution -------------------- 100% | Mutant Dominant Class ---------------- Mutant | -10/Materials Resources | -11 -10 ----------- Run | Yrd Mat Matter Collected 503 | 158 345 Remotely . | . . Salvage Created 919 | 83 836 Parts 49 | 1 48 Haulers Intercepted 2 | . 2 Recyclers Shooed 3 | 1 2 Parts Field Recycled . | . . Retrieved Matter . | . . Parts Self-Destructed . | . . Prevented . | . . Kills | -11 -10 ------- Run | Yrd Mat Combat Hostiles Destroyed 17 | . 17 Melee 2 | . 2 Cannons 13 | . 13 Classes Destroyed 5 | 1 4 Hauler 2 | . 2 Recycler 4 | 1 3 Watcher 3 | . 3 Swarmer 6 | . 6 Grunt 11 | . 11 Best Kill Streak 9 | 1 9 Combat Bots Only 6 | . 6 Max Kills in Single Turn 2 | 1 2 Gunslinging . | . . Exploded . | . . Melee 1 | . 1 Uniques/NPCs Destroyed . | . . Combat | -11 -10 -------- Run | Yrd Mat Hostile Shots Fired 97 | . 97 Missed 31 | . 31 Damage Taken 789 | . 789 Core 250 | . 250 Absorbed by Shields . | . . Ignored by Resistances 241 | . 241 Core Remaining (%) 100 | 100 . Volleys Fired 44 | 6 38 Largest 2 | 2 2 Hottest 136 | 40 136 Shots Fired 88 | 12 76 Gun 12 | 12 . Cannon 76 | . 76 Launcher . | . . Special . | . . Kinetic 12 | 12 . Thermal 76 | . 76 Explosive . | . . Electromagnetic . | . . Robot Hit Streak 20 | 11 20 Robot Miss Streak 2 | . 2 Penetration Max . | . . Secondary Targets . | . . Shots Hit Robots 75 | 11 64 Core Hits 25 | 2 23 Critical Kills 1 | . 1 Critical Parts Destroyed 2 | . 2 Critical Strikes 3 | . 3 Meltdown 1 | . 1 Smash 2 | . 2 Melee Attacks 17 | . 17 Impact 17 | . 17 Slashing . | . . Piercing . | . . Sneak Attacks . | . . Combat Hostiles . | . . Follow-up Attacks . | . . Damage Inflicted 1704 | 144 1560 Guns 144 | 144 . Cannons 1023 | . 1023 Explosions . | . . Melee 537 | . 537 Ramming . | . . Kinetic 144 | 144 . Thermal 1023 | . 1023 Explosive . | . . Electromagnetic . | . . Impact 537 | . 537 Slashing . | . . Piercing . | . . Highest Corruption . | . . Average Corruption . | . . Corruption Purged . | . . Corruption Blocked . | . . Overload Shots . | . . Overflow Damage 120 | . 120 Projectiles 20 | . 20 Explosions . | . . Melee 100 | . 100 Knockbacks 2 | . 2 Impact 2 | . 2 Kinetic . | . . Secondary . | . . Self-Inflicted Damage . | . . Shots . | . . Rammed . | . . Targets Rammed . | . . Kicked . | . . Crushed . | . . Highest Temperature 453 | . 453 Average Temperature 140 | . 140 Received Heat Transfer 357 | . 357 Effects 4 | . 4 Shutdowns 3 | . 3 Damage (minor) 1 | . 1 Siege Activations . | . . Robots Corrupted 2 | . 2 Combat Hostiles 2 | . 2 Parts Fried 1 | . 1 Impact Corruptions 5 | . 5 Robots Melted 1 | . 1 Combat Hostiles . | . . Parts Melted 4 | . 4 Heat Transferred 1850 | . 1850 Parts Sabotaged . | . . Parts Stolen . | . . Parts Stripped . | . . Power Chain Reactions . | . . Alert | -11 -10 ------- Run | Yrd Mat Peak Influence 302 | 5 302 Initial 2 | . 2 Average 119 | 1 131 Maximum Alert Level 1 | . 1 Low Security (%) 76 | 100 73 Level 1 23 | . 26 Level 2 . | . . Level 3 . | . . Level 4 . | . . Level 5 . | . . High Security . | . . Max Security . | . . Squads Dispatched 3 | . 3 Investigation 3 | . 3 Extermination . | . . Reinforcement . | . . Assault . | . . Garrison . | . . Intercept . | . . Searches Triggered . | . . Construction Impeded . | . . Haulers Reinforced . | . . Active Scanning Responses . | . . Cargo Convoy Interrupts . | . . Stealth | -11 -10 --------- Run | Yrd Mat Distress Signals 1 | . 1 Communications Jammed . | . . Distress Signals . | . . Times Spotted 22 | . 22 Peak Tracking Total 7 | . 7 Tactical Retreats 2 | . 2 Traps | -11 -10 ------- Run | Yrd Mat Traps Triggered 2 | . 2 Indirectly . | . . Trap Hack Attempts . | . . Triggered . | . . Disarmed . | . . Reprogrammed . | . . Reused . | . . Traps Extracted . | . . Installed . | . . Triggered . | . . Machines | -11 -10 ---------- Run | Yrd Mat Machines Disabled 1 | . 1 Max in Single Turn 1 | . 1 Machines Repaired . | . . Machines Dismantled . | . . Machines Sabotaged . | . . Overloaded Fab Kills . | . . Hacking | -11 -10 --------- Run | Yrd Mat Machines Accessed 7 | . 7 Terminals 6 | . 6 Fabricators . | . . Repair Stations . | . . Recycling Units 1 | . 1 Scanalyzers . | . . Garrison Access . | . . Total Hacks 19 | . 19 Successful 7 | . 7 Failed 11 | . 11 Catastrophic . | . . Database Lockouts 1 | . 1 Manual 13 | . 13 Terminals 18 | . 18 Fabricators . | . . Repair Stations . | . . Recycling Units 1 | . 1 Scanalyzers . | . . Garrison Access . | . . Terminal Hacks 6 | . 6 Robot Analysis 2 | . 2 Prototype ID Bank 2 | . 2 Terminal Index 1 | . 1 Recall Investigation 1 | . 1 Fabricator Hacks . | . . Repair Station Hacks . | . . Recycling Unit Hacks 1 | . 1 Report Inventory 1 | . 1 Scanalyzer . | . . Garrison Access Hacks . | . . Unauthorized Hacks . | . . Terminals . | . . Fabricators . | . . Repair Stations . | . . Recycling Units . | . . Scanalyzers . | . . Garrison Access . | . . Data Cores Recovered . | . . Used . | . . Hacking Detections 6 | . 6 Full Trace Events 4 | . 4 Feedback Events . | . . Feedback Blocked . | . . Robot Schematics Acquired . | . . Robots Built . | . . Authchips . | . . Time . | . . Total Robot Build Rating . | . . Part Schematics Acquired . | . . Parts Built . | . . Authchips . | . . Time . | . . Total Part Build Rating . | . . Parts Repaired . | . . Time . | . . Parts Recycled . | . . Recycled Matter . | . . Retrieved Matter . | . . Retrieved Components . | . . Parts Scanalyzed . | . . Part Schematics Acquired . | . . Parts Damaged . | . . Bothacking | -11 -10 ------------ Run | Yrd Mat Used RIF Installer . | . . Robots Hacked . | . . Non-combat . | . . Combat . | . . Robot Hacks Applied . | . . Relay Couplers Released . | . . Fabnet Peak Effective % . | . . Robots Rewired . | . . Allies Hacked . | . . Hacks Repelled . | . . Allies | -11 -10 -------- Run | Yrd Mat Total Allies . | . . Largest Group . | . . Highest-Rated Group . | . . Highest-Rated Ally . | . . Total Orders . | . . Ally Attacks . | . . Total Damage . | . . Kills . | . . Allies Corrupted . | . . Allies Melted . | . . Intel | -11 -10 ------- Run | Yrd Mat Robot Analysis Total 2 | . 2 Derelict Logs Recovered . | . . Drone Launches . | . . Drone Recoveries . | . . Exploration | -11 -10 ------------- Run | Yrd Mat Turns Passed 680 | 61 619 Spaces Moved 444 | 37 407 Core 11 | 11 . Treads . | . . Legs . | . . Wheels 433 | 26 407 Hover . | . . Flight . | . . Fastest Speed 50 | 50 80 Average Speed 95 | 78 96 Slowest Speed 115 | 90 115 Overloaded Moves . | . . Propulsion Burnouts . | . . Robots Hopped . | . . Cave-ins Triggered . | . . Exploration Rate (%) 31 | 3 59 Regions Visited 1 Branch Regions . Pre-discovered Areas . | . . Known Exits Taken . | . . Unknown Exits Taken 1 | 1 . Scrap Searched . | . . Spaces Dug . | . . Terrain Destroyed . | . . Melee . | . . Projectile . | . . AOE . | . . Terrain Rammed . | . . Walls Destroyed . | . . Machines Disabled . | . . Actions | -11 -10 --------- Run | Yrd Mat Total 585 | 57 528 Wait 21 | . 21 Move 443 | 36 407 Hop . | . . Pick Up 27 | 7 20 Fast Attach . | . . Attach 13 | 7 6 Detach . | . . Swap 9 | . 9 Drop 11 | 1 10 Fire 44 | 6 38 Melee 17 | . 17 Ram . | . . Kick . | . . Crush . | . . Escape Stasis . | . . Rewire . | . . Trap . | . . Miscellaneous . | . . Route ------- -11/Scrapyard -10/Materials (discovered 4 exits: [*Mat x2] / [*Min x2]) History --------- Turn | Location | Event 6 | -11/Scrapyard | Discovered new exit (range 15) 62 | -11/Scrapyard | Entered Materials 107 | -10/Materials | Discovered new exit (range 8) 137 | -10/Materials | Discovered new exit (range 6) 325 | -10/Materials | Build established: Mutant 346 | -10/Materials | Discovered new exit (range 16) 579 | -10/Materials | Discovered new exit (range 9) 585 | -10/Materials | Core integrity fell below 50% 656 | -10/Materials | Central database locked down 681 | -10/Materials | Destroyed by exploding Fusion Modulator Last Messages --------------- Tier: 1 M-series mechanics are valued in dangerous areas for their ability to rebuild components, repair simple core integrity, and restore missing functionality by attaching temporary backup components. Despite their well-rounded protective armor, M-13 Machinists in particular are less often used as front line units, instead operating from a designated repair station. 00678_ K-01 Serf cleans the Fusion Modulator. 00681_ Triggered EMP Trap. 00681_ A bubble of electromagnetic force engulfs the area. 00681_ Fusion Modulator explodes. 00681_ Particle Cannon destroyed. 00681_ Com. Wheel destroyed. 00681_ Fusion Modulator explodes. 00681_ T-07 Excavator destroyed. 00681_ K-01 Serf destroyed. Map ----- +----------------------------------------------------+ | ?????????????????????????????????????????????????? | | ?????????????????????????????+######## ??????????? | | ????????????????????????????? ??????????? | | ????????????????????????????? ?? ????????? | | ?????????????????????????????# ? #???????? | | ?????????????????????????????# """ ##??????? | | ?????????????????????????????# """ ???????? | | ?????????????????????????????# """ #????????? | | ####?????????????????????????+ #????????? | | #?????????????????????????# #????????? | | #?????????????????????????# """ #????????? | | #???????????###############= """ #????????? | | ############# / ^=%! """ #????????? | | + * =[= !!!!!! +????????? | | ### =[= = [ * !!%!= #????????? | | #?#!%%#########%[ """ !""" """ #????????? | | ##+###!!=# #==%*""" *""" """ #????????? | | =%!= %=%[ """ """ """ #????????? | | [ =%* <=%! =% %^ * #####????? | | * =% % = [ #????? | | #######! =## ! < #????? | | # ! # "!"| ## ! #????? | | + #""!"|""## = = #### #########? | | # ########## #??# # #? | | #[ #???????## #??# # """ T #? | | #### !! #???????# @ #??# + """ #? | | ???# ! #???????# #??# # """ [#? | | ???# #???????# #??# + #? | | ???##+####???????# #??# #########? | | ###?? #??????????# #??## ########### | | #?? #??????????# ##;;;;;## ##???# # ? | | " #?? #??????????# ??######## #????# # ? | | " #?? #??????????#??????????# #????# # """ """ # | | " ### #?????????????????????# ######+# """ """ # | | " + #?????????????????????# # # """ """ # | | # #?????????????????????# #[ """ # # | | " # #?????????????????????# # "R" ###+####??? | | " # #?????????????????????+ + " " # #????? | | " # #???#?##??????????????# # + #????? | | " # #??? #??????#???????+ # ] # T #????? | | # ##### ###### #???????##+###+##### #????? | | # #??????????? T #???## ##????? | | ### #????????? #????# #?????? | | ??# #??????? #????+ #?????? | | ??# # ###+#????????# #????# #?????? | | ??#= # #????????????# #????# #?????? | | ??#= == !# #????????????# """ #????+ #?????? | | ??#====!!# #????????????# """ #????# ?????? | | ??############????????????# """ #????# ?????? | | ??????????????????????????# ?????# ?????? | +----------------------------------------------------+ Best States ------------- Heat Dissipation 47 Energy Generation 10 Energy Capacity 250 Matter Stores 300 Matter Capacity 300 Sight Range 16 Terrain Scan Density 10 Resistance: KI 20 Resistance: TH 20 Resistance: EX 20 Resistance: EM 20 Resistance: I 20 Resistance: S 20 Resistance: P 20 Evasion (%) 50 Offensive Hacking 10 Item Schematics ----------------- None Robot Schematics ------------------ None Fabricated ------------ Nothing Alien Tech Used ----------------- None Achievements -------------- None Challenges ------------ None Game ------ Seed HardlightArcTrident Manual? 0 Play Time 00:12:13 Cumulative 24.4 hours Start 2024.08.14 @ 23:05:18 End 2024.08.14 @ 23:17:34 Sessions 1 Manual Loads 0 Difficulty Adventurer Special Mode None Game No. 13 Rogue 0 Adventurer 13 Explorer 0 Win Type - Total 0 Types 0/0/0/0/0/0/0/0/0 Lore% 15 Gallery% 30 Achievement% 31 Wizard Run 0 Options --------- Layout 1 ASCII 0 Keyboard 0 Movement Numpad Keybinds 0 Fullscreen 1 Font 48/Smallcaps Map View 50x35 Zoom Use 0% Tactical HUD 1 Map Filters NONE Filters NONE Steam 1 RUN: a9d7c9b4-cd63-4e83-852a-b386d3282cb2